fUSD/lending_fUSD_20240526
["ID","MTS","AMOUNT","RATE_DAILY","PERIOD"]
[327997253,1716766263177,-500.0,0.00027671,4]
[327997254,1716766263186,-773.49,0.00027671,4]
[327997255,1716766263195,-500.0,0.00027671,4]
[327997256,1716766263206,-500.0,0.00027671,4]
[327997257,1716766263216,-290.92768892,0.00027671,4]
[327997258,1716766263225,-500.0,0.00027671,4]
[327997259,1716766263235,-500.0,0.00027671,4]
[327997260,1716766263244,-500.0,0.00027671,4]
[327997261,1716766263253,-500.0,0.00027671,4]
[327997262,1716766263263,-500.0,0.00027671,4]
[327997263,1716766263272,-1770.78,0.00027671,4]
[327997264,1716766263281,-1097.24,0.00027671,4]
[327997265,1716766263291,-500.0,0.00027671,4]
[327997266,1716766263300,-500.0,0.00027671,4]
[327997267,1716766263309,-1231.06,0.00027671,4]
[327997268,1716766263319,-12518.24,0.00027671,4]
[327997269,1716766263328,-500.0,0.00027671,4]
[327997270,1716766263337,-1324.66,0.00027671,4]
[327997271,1716766263346,-716.14,0.00027671,4]
[327997272,1716766263356,-500.0,0.00027671,4]
[327997273,1716766263364,-500.0,0.00027671,4]
[327997274,1716766263373,-500.0,0.00027671,4]
[327997275,1716766263382,-195.14530531,0.00027671,4]
[327997276,1716766263392,-500.0,0.00027671,4]
[327997277,1716766263401,-500.0,0.00027671,4]
[327997278,1716766263410,-808.36,0.00027671,4]
[327997279,1716766263420,-500.0,0.00027671,4]
[327997280,1716766263430,-500.0,0.00027671,4]
[327997281,1716766263439,-500.0,0.00027671,4]
[327997282,1716766263449,-500.0,0.00027671,4]
[327997283,1716766263460,-500.0,0.00027671,4]
[327997284,1716766263469,-648.03,0.00027671,4]
[327997285,1716766263478,-500.0,0.00027671,4]
[327997286,1716766263488,-500.0,0.00027671,4]
[327997287,1716766263497,-1164.95,0.00027671,4]
[327997288,1716766263507,-2740.82,0.00027671,4]
[327997289,1716766263516,-500.0,0.00027671,4]
[327997290,1716766263526,-595.23,0.00027671,4]
[327997291,1716766263535,-500.0,0.00027671,4]
[327997292,1716766263544,-745.74,0.00027671,4]
[327997293,1716766263553,-566.07,0.00027671,4]
[327997294,1716766263563,-563.58,0.00027671,4]
[327997295,1716766263572,-1642.45,0.00027671,4]
[327997296,1716766263582,-500.0,0.00027671,4]
[327997297,1716766263591,-538.9,0.00027671,4]
[327997298,1716766263600,-500.0,0.00027671,4]
[327997299,1716766263609,-500.0,0.00027671,4]
[327997300,1716766263618,-500.0,0.00027671,4]
[327997301,1716766263627,-500.0,0.00027671,4]
[327997302,1716766263637,-500.0,0.00027671,4]
[327997303,1716766263646,-500.0,0.00027671,4]
[327997304,1716766263655,-5551.36,0.00027671,4]
[327997305,1716766263665,-500.0,0.00027671,4]
[327997306,1716766263674,-500.0,0.00027671,4]
[327997307,1716766263683,-500.0,0.00027671,4]
[327997308,1716766263693,-500.0,0.00027671,4]
[327997309,1716766263703,-500.0,0.00027671,4]
[327997310,1716766263712,-600.12436502,0.00027671,4]
[327997311,1716766263722,-593.26,0.00027671,4]
[327997312,1716766263731,-500.0,0.00027671,4]
[327997313,1716766263740,-500.0,0.00027671,4]
[327997314,1716766263750,-972.91,0.00027671,4]
[327997315,1716766263759,-517.19713026,0.00027671,4]
[327997316,1716766263769,-500.0,0.00027671,4]
[327997317,1716766263778,-561.18,0.00027671,4]
[327997318,1716766263788,-500.0,0.00027671,4]
[327997319,1716766263798,-500.0,0.00027671,4]
[327997320,1716766263807,-881.68,0.00027671,4]
[327997321,1716766263816,-575.29,0.00027671,4]
[327997322,1716766263826,-500.0,0.00027671,4]
[327997323,1716766263835,-500.0,0.00027671,4]
[327997324,1716766263845,-500.0,0.00027671,4]
[327997325,1716766263854,-500.0,0.00027671,4]
[327997326,1716766263863,-1259.79,0.00027671,4]
[327997327,1716766263873,-500.0,0.00027671,4]
[327997328,1716766263883,-500.0,0.00027671,4]
[327997329,1716766263892,-500.0,0.00027671,4]
[327997330,1716766263901,-500.0,0.00027671,4]
[327997331,1716766263911,-605.76,0.00027671,4]
[327997332,1716766263920,-3536.07,0.00027671,4]
[327997333,1716766263930,-500.0,0.00027671,4]
[327997334,1716766263939,-850.48,0.00027671,4]
[327997335,1716766263948,-500.0,0.00027671,4]
[327997336,1716766263960,-826.83,0.00027671,4]
[327997337,1716766263970,-500.0,0.00027671,4]
[327997338,1716766263979,-500.0,0.00027671,4]
[327997339,1716766263989,-500.0,0.00027671,4]
[327997340,1716766263998,-500.0,0.00027671,4]
[327997341,1716766264007,-500.0,0.00027671,4]
[327997342,1716766264016,-1946.87,0.00027671,4]
[327997343,1716766264026,-529.73992973,0.00027671,4]
[327997344,1716766264036,-500.0,0.00027671,4]
[327997345,1716766264045,-1471.62,0.00027671,4]
[327997346,1716766264054,-500.0,0.00027671,4]
[327997347,1716766264064,-500.0,0.00027671,4]
[327997348,1716766264073,-500.0,0.00027671,4]
[327997349,1716766264083,-500.0,0.00027671,4]
[327997350,1716766264093,-500.0,0.00027671,4]
[327997351,1716766264102,-1299.03,0.00027671,4]
[327997352,1716766264111,-500.0,0.00027671,4]
[327997353,1716766264121,-222.87,0.00027671,4]
[327997354,1716766264131,-654.22,0.00027671,4]
[327997355,1716766264141,-874.0,0.00027671,4]
[327997356,1716766264150,-500.0,0.00027671,4]
[327997357,1716766264159,-509.25,0.00027671,4]
[327997358,1716766264174,-500.0,0.00027671,4]
[327997359,1716766264183,-500.0,0.00027671,4]
[327997360,1716766264193,-500.0,0.00027671,4]
[327997361,1716766264202,-777.17,0.00027671,4]
[327997362,1716766264214,-500.0,0.00027671,4]
[327997363,1716766264223,-500.0,0.00027671,4]
[327997364,1716766264232,-1565.29,0.00027671,4]
[327997365,1716766264242,-522.46138643,0.00027671,4]
[327997366,1716766264252,-500.0,0.00027671,4]
[327997367,1716766264262,-500.0,0.00027671,4]
[327997368,1716766264272,-855.17,0.00027671,4]
[327997369,1716766264281,-701.7,0.00027671,4]
[327997370,1716766264291,-500.0,0.00027671,4]
[327997371,1716766264300,-500.0,0.00027671,4]
[327997372,1716766264309,-500.0,0.00027671,4]
[327997373,1716766264319,-8290.14,0.00027671,4]
[327997374,1716766264328,-500.0,0.00027671,4]
[327997375,1716766264339,-500.0,0.00027671,4]
[327997376,1716766264348,-761.08,0.00027671,4]
[327997377,1716766264358,-500.0,0.00027671,4]
[327997378,1716766264367,-599.5,0.00027671,4]
[327997379,1716766264377,-500.0,0.00027671,4]
[327997380,1716766264386,-500.0,0.00027671,4]
[327997381,1716766264395,-500.0,0.00027671,4]
[327997382,1716766264405,-500.0,0.00027671,4]
[327997383,1716766264414,-643.13,0.00027671,4]
[327997384,1716766264424,-500.0,0.00027671,4]
[327997385,1716766264433,-500.0,0.00027671,4]
[327997386,1716766264442,-500.0,0.00027671,4]
[327997387,1716766264452,-500.0,0.00027671,4]
[327997388,1716766264462,-4278.59,0.00027671,4]
[327997389,1716766264472,-500.0,0.00027671,4]
[327997390,1716766264481,-500.0,0.00027671,4]
[327997391,1716766264491,-500.0,0.00027671,4]
[327997392,1716766264500,-500.0,0.00027671,4]
[327997393,1716766264510,-6703.51,0.00027671,4]
[327997394,1716766264519,-500.0,0.00027671,4]
[327997395,1716766264528,-1138.56,0.00027671,4]
[327997396,1716766264538,-500.0,0.00027671,4]
[327997397,1716766264548,-880.9,0.00027671,4]
[327997398,1716766264557,-500.0,0.00027671,4]
[327997399,1716766264567,-500.0,0.00027671,4]
[327997400,1716766264577,-1237.34,0.00027671,4]
[327997401,1716766264587,-500.0,0.00027671,4]
[327997402,1716766264596,-500.0,0.00027671,4]
[327997403,1716766264606,-772.3,0.00027671,4]
[327997404,1716766264617,-891.81,0.00027671,4]
[327997405,1716766264626,-500.0,0.00027671,4]
[327997406,1716766264636,-588.35,0.00027671,4]
[327997407,1716766264645,-500.0,0.00027671,4]
[327997408,1716766264655,-500.0,0.00027671,4]
[327997409,1716766264665,-500.0,0.00027671,4]
[327997410,1716766264674,-479.20857025,0.00027671,4]
[327997411,1716766264684,-930.12,0.00027671,4]
[327997412,1716766264694,-500.0,0.00027671,4]
[327997413,1716766264704,-723.38,0.00027671,4]
[327997414,1716766264714,-571.15239536,0.00027671,4]
[327997415,1716766264723,-505.0,0.00027671,4]
[327997416,1716766264733,-500.0,0.00027671,4]
[327997417,1716766264742,-3019.87,0.00027671,4]
[327997418,1716766264751,-500.0,0.00027671,4]
[327997419,1716766264761,-631.78489648,0.00027671,4]
[327997420,1716766264770,-540.52925966,0.00027671,4]
[327997421,1716766264779,-500.0,0.00027671,4]
[327997422,1716766264788,-500.0,0.00027671,4]
[327997423,1716766264798,-500.0,0.00027671,4]
[327997424,1716766264808,-500.0,0.00027671,4]
[327997425,1716766264948,-500.0,0.00027671,4]
[327997426,1716766264958,-500.0,0.00027671,4]
[327997427,1716766264968,-500.0,0.00027671,4]
[327997428,1716766264977,-500.0,0.00027671,4]
[327997429,1716766264986,-500.0,0.00027671,4]
[327997430,1716766264995,-737.24,0.00027671,4]
[327997431,1716766265005,-500.0,0.00027671,4]
[327997432,1716766265014,-500.0,0.00027671,4]
[327997433,1716766265023,-500.0,0.00027671,4]
[327997434,1716766265032,-3353.66,0.00027671,4]
[327997435,1716766265041,-624.72272987,0.00027671,4]
[327997436,1716766265051,-500.0,0.00027671,4]
[327997437,1716766265060,-568.67357505,0.00027671,4]
[327997438,1716766265069,-500.0,0.00027671,4]
[327997439,1716766265079,-500.0,0.00027671,4]
[327997440,1716766265089,-500.0,0.00027671,4]
[327997441,1716766265098,-1655.73,0.00027671,4]
[327997442,1716766265107,-500.0,0.00027671,4]
[327997443,1716766265116,-628.01,0.00027671,4]
[327997444,1716766265126,-557.95,0.00027671,4]
[327997445,1716766265135,-500.0,0.00027671,4]
[327997446,1716766265144,-1130.95,0.00027671,4]
[327997447,1716766265154,-500.0,0.00027671,4]
[327997448,1716766265165,-500.0,0.00027671,4]
[327997449,1716766265177,-500.0,0.00027671,4]
[327997450,1716766265187,-2845.63,0.00027671,4]
[327997451,1716766265196,-266.73727385,0.00027671,4]
[327997452,1716766265207,-500.0,0.00027671,4]
[327997453,1716766265216,-500.0,0.00027671,4]
[327997454,1716766265224,-500.0,0.00027671,4]
[327997455,1716766265234,-500.0,0.00027671,4]
[327997456,1716766265243,-1950.47,0.00027671,4]
[327997457,1716766265252,-902.66,0.00027671,4]
[327997458,1716766265262,-786.5,0.00027671,4]
[327997459,1716766265272,-7054.88,0.00027671,4]
[327997460,1716766265282,-1344.42,0.00027671,4]
[327997461,1716766265292,-500.0,0.00027671,4]
[327997462,1716766265301,-500.0,0.00027671,4]
[327997463,1716766265311,-1190.17,0.00027671,4]
[327997464,1716766265320,-500.0,0.00027671,4]
[327997465,1716766265329,-500.0,0.00027671,4]
[327997466,1716766265339,-693.7,0.00027671,4]
[327997467,1716766265348,-500.0,0.00027671,4]
[327997468,1716766265357,-792.19,0.00027671,4]
[327997469,1716766265366,-500.0,0.00027671,4]
[327997470,1716766265376,-524.25728865,0.00027671,4]
[327997471,1716766265386,-500.0,0.00027671,4]
[327997472,1716766265396,-500.0,0.00027671,4]
[327997473,1716766265406,-500.0,0.00027671,4]
[327997474,1716766265416,-500.0,0.00027671,4]
[327997475,1716766265425,-500.0,0.00027671,4]
[327997476,1716766265435,-500.0,0.00027671,4]
[327997477,1716766265444,-500.0,0.00027671,4]
[327997478,1716766265454,-1616.54,0.00027671,4]
[327997479,1716766265463,-753.14,0.00027671,4]
[327997480,1716766265473,-500.0,0.00027671,4]
[327997481,1716766265483,-500.0,0.00027671,4]
[327997482,1716766265492,-500.0,0.00027671,4]
[327997483,1716766265502,-735.26,0.00027671,4]
[327997484,1716766265511,-500.0,0.00027671,4]
[327997485,1716766265521,-1672.85,0.00027671,4]
[327997486,1716766265530,-1478.27,0.00027671,4]
[327997487,1716766265539,-500.0,0.00027671,4]
[327997488,1716766265549,-500.0,0.00027671,4]
[327997489,1716766265558,-500.0,0.00027671,4]
[327997490,1716766265567,-500.0,0.00027671,4]
[327997491,1716766265577,-500.0,0.00027671,4]
[327997492,1716766265587,-500.0,0.00027671,4]
[327997493,1716766265597,-1055.1,0.00027671,4]
[327997494,1716766265607,-500.0,0.00027671,4]
[327997495,1716766265616,-1222.14,0.00027671,4]
[327997496,1716766265626,-564.5,0.00027671,4]
[327997497,1716766265635,-500.0,0.00027671,4]
[327997498,1716766265645,-502.53617852,0.00027671,4]
[327997499,1716766265655,-500.0,0.00027671,4]
[327997500,1716766265665,-500.0,0.00027671,4]
[327997501,1716766265674,-1219.52,0.00027671,4]
[327997502,1716766265683,-2006.47,0.00027671,4]
[327997503,1716766265693,-500.0,0.00027671,4]
[327997504,1716766265704,-500.0,0.00027671,4]
[327997505,1716766265713,-500.0,0.00027671,4]
[327997506,1716766265722,-500.0,0.00027671,4]
[327997507,1716766265731,-500.0,0.00027671,4]
[327997508,1716766265741,-860.6,0.00027671,4]
[327997509,1716766265751,-500.0,0.00027671,4]
[327997510,1716766265760,-500.0,0.00027671,4]
[327997511,1716766265770,-1285.66,0.00027671,4]
[327997512,1716766265779,-500.0,0.00027671,4]
[327997513,1716766265788,-1245.87,0.00027671,4]
[327997514,1716766265798,-500.0,0.00027671,4]
[327997515,1716766265807,-500.0,0.00027671,4]
[327997516,1716766265817,-500.0,0.00027671,4]
[327997517,1716766265826,-500.0,0.00027671,4]
[327997518,1716766265835,-520.99363584,0.00027671,4]
[327997519,1716766265846,-500.0,0.00027671,4]
[327997520,1716766265855,-500.0,0.00027671,4]
[327997521,1716766265864,-500.0,0.00027671,4]
[327997522,1716766265874,-500.0,0.00027671,4]
[327997523,1716766265883,-1054.38,0.00027671,4]
[327997524,1716766265893,-500.0,0.00027671,4]
[327997525,1716766265902,-686.51,0.00027671,4]
[327997526,1716766265911,-500.0,0.00027671,4]
[327997527,1716766265921,-500.0,0.00027671,4]
[327997528,1716766265930,-500.0,0.00027671,4]
[327997529,1716766265939,-500.0,0.00027671,4]
[327997530,1716766265948,-500.0,0.00027671,4]
[327997531,1716766265959,-2090.3,0.00027671,4]
[327997532,1716766265969,-500.0,0.00027671,4]
[327997533,1716766265978,-500.0,0.00027671,4]
[327997534,1716766265987,-500.0,0.00027671,4]
[327997535,1716766265996,-500.0,0.00027671,4]
[327997536,1716766266006,-500.0,0.00027671,4]
[327997537,1716766266015,-500.0,0.00027671,4]
[327997538,1716766266024,-500.0,0.00027671,4]
[327997539,1716766266034,-500.0,0.00027671,4]
[327997540,1716766266043,-500.0,0.00027671,4]
[327997541,1716766266052,-4489.53,0.00027671,4]
[327997542,1716766266062,-500.0,0.00027671,4]
[327997543,1716766266071,-500.0,0.00027671,4]
[327997544,1716766266081,-547.81863709,0.00027671,4]
[327997545,1716766266090,-500.0,0.00027671,4]
[327997546,1716766266099,-500.0,0.00027671,4]
[327997547,1716766266109,-500.0,0.00027671,4]
[327997548,1716766266119,-500.0,0.00027671,4]
[327997549,1716766266128,-500.0,0.00027671,4]
[327997550,1716766266137,-532.87647115,0.00027671,4]
[327997551,1716766266147,-500.0,0.00027671,4]
[327997552,1716766266156,-500.0,0.00027671,4]
[327997553,1716766266167,-660.84,0.00027671,4]
[327997554,1716766266178,-500.0,0.00027671,4]
[327997555,1716766266187,-1241.08,0.00027671,4]
[327997556,1716766266197,-500.0,0.00027671,4]
[327997557,1716766266209,-500.0,0.00027671,4]
[327997558,1716766266218,-320.59236827,0.00027671,4]
[327997559,1716766266227,-1622.1,0.00027671,4]
[327997560,1716766266237,-1457.46,0.00027671,4]
[327997561,1716766266248,-500.0,0.00027671,4]
[327997562,1716766266257,-500.0,0.00027671,4]
[327997563,1716766266266,-519.03,0.00027671,4]
[327997564,1716766266276,-500.0,0.00027671,4]
[327997565,1716766266285,-500.0,0.00027671,4]
[327997566,1716766266294,-500.0,0.00027671,4]
[327997567,1716766266303,-1446.35,0.00027671,4]
[327997568,1716766266313,-767.41,0.00027671,4]
[327997569,1716766266322,-500.0,0.00027671,4]
[327997570,1716766266332,-540.35,0.00027671,4]
[327997571,1716766266342,-500.0,0.00027671,4]
[327997572,1716766266351,-535.71,0.00027671,4]
[327997573,1716766266360,-500.0,0.00027671,4]
[327997574,1716766266370,-500.0,0.00027671,4]
[327997575,1716766266379,-754.4,0.00027671,4]
[327997576,1716766266388,-3162.97,0.00027671,4]
[327997577,1716766266397,-500.0,0.00027671,4]
[327997578,1716766266407,-274.71217648,0.00027671,4]
[327997579,1716766266416,-570.58244643,0.00027671,4]
[327997580,1716766266425,-500.0,0.00027671,4]
[327997581,1716766266435,-500.0,0.00027671,4]
[327997582,1716766266444,-500.0,0.00027671,4]
[327997583,1716766266455,-500.0,0.00027671,4]
[327997584,1716766266464,-500.0,0.00027671,4]
[327997585,1716766266473,-500.0,0.00027671,4]
[327997586,1716766266482,-500.0,0.00027671,4]
[327997587,1716766266491,-500.0,0.00027671,4]
[327997588,1716766266500,-500.0,0.00027671,4]
[327997589,1716766266509,-656.74,0.00027671,4]
[327997590,1716766266519,-500.0,0.00027671,4]
[327997591,1716766266528,-500.0,0.00027671,4]
[327997592,1716766266538,-500.0,0.00027671,4]
[327997593,1716766266547,-1154.85,0.00027671,4]
[327997594,1716766266557,-698.24,0.00027671,4]
[327997595,1716766266566,-500.0,0.00027671,4]
[327997596,1716766266576,-1228.33,0.00027671,4]
[327997597,1716766266586,-1334.79,0.00027671,4]
[327997598,1716766266595,-962.47,0.00027671,4]
[327997599,1716766266604,-594.66,0.00027671,4]
[327997600,1716766266613,-500.0,0.00027671,4]
[327997601,1716766266623,-500.0,0.00027671,4]
[327997602,1716766266632,-500.0,0.00027671,4]
[327997603,1716766266641,-500.0,0.00027671,4]
[327997604,1716766266651,-500.0,0.00027671,4]
[327997605,1716766266661,-500.0,0.00027671,4]
[327997606,1716766266670,-500.0,0.00027671,4]
[327997607,1716766266679,-500.0,0.00027671,4]
[327997608,1716766266689,-507.10989183,0.00027671,4]
[327997609,1716766266698,-500.0,0.00027671,4]
[327997610,1716766266708,-552.57977292,0.00027671,4]
[327997611,1716766266717,-1990.19,0.00027795,2]
[327997612,1716766266726,-151.03922113,0.00027834,2]
[327997613,1716766266736,-1000.0,0.00027944,5]
[327997614,1716766266745,-1000.0,0.00027944,5]
[327997615,1716766266754,-1000.0,0.00027944,5]
[327997616,1716766266764,-957.46,0.00027944,5]
[327997617,1716766266773,-2489.65,0.00027944,4]
[327997618,1716766266782,-2489.65,0.00027944,4]
[327997619,1716766266792,-769.28,0.00027944,4]
[327997620,1716766266803,-525.18565437,0.00027945,4]
[327997621,1716766266813,-500.0,0.00027945,4]
[327997622,1716766266822,-500.0,0.00027945,4]
[327997623,1716766266832,-500.0,0.00027945,4]
[327997624,1716766266842,-448.70344518,0.00027945,4]
[327997625,1716766266851,-200.0,0.00027945,4]
[327997626,1716766266860,-500.0,0.00027945,4]
[327997627,1716766266869,-500.0,0.00027945,4]
[327997628,1716766266879,-439.46033502,0.00027945,4]
[327997629,1716766266888,-500.0,0.00027945,4]
[327997630,1716766266898,-500.0,0.00027945,4]
[327997631,1716766266907,-500.0,0.00027945,4]
[327997632,1716766266916,-500.0,0.00027945,4]
[327997633,1716766266926,-500.0,0.00027945,4]
[327997634,1716766266935,-500.0,0.00027945,4]
[327997635,1716766266945,-500.0,0.00027945,4]
[327997636,1716766266954,-500.0,0.00027945,4]
[327997637,1716766266963,-500.0,0.00027945,4]
[327997638,1716766266973,-500.0,0.00027945,4]
[327997639,1716766266983,-500.0,0.00027945,4]
[327997640,1716766266992,-500.0,0.00027945,4]
[327997641,1716766267002,-500.0,0.00027945,4]
[327997642,1716766267011,-500.0,0.00027945,4]
[327997643,1716766267021,-500.0,0.00027945,4]
[327997644,1716766267032,-500.0,0.00027945,4]
[327997645,1716766267042,-500.0,0.00027945,4]
[327997646,1716766267052,-500.0,0.00027945,4]
[327997647,1716766267114,-500.0,0.00027945,4]
[327997648,1716766267123,-500.0,0.00027945,4]
[327997649,1716766267133,-500.0,0.00027945,4]
[327997650,1716766267143,-500.0,0.00027945,4]
[327997651,1716766267152,-500.0,0.00027945,4]
[327997652,1716766267161,-500.0,0.00027945,4]
[327997653,1716766267174,-500.0,0.00027945,4]
[327997654,1716766267183,-500.0,0.00027945,4]
[327997655,1716766267193,-500.0,0.00027945,4]
[327997656,1716766267202,-500.0,0.00027945,4]
[327997657,1716766267212,-304.50622953,0.00027945,4]
[327997658,1716766267222,-500.0,0.00027945,4]
[327997659,1716766267232,-500.0,0.00027945,4]
[327997660,1716766267241,-500.0,0.00027945,4]
[327997661,1716766267252,-500.0,0.00027945,4]
[327997662,1716766267262,-500.0,0.00027945,4]
[327997663,1716766267271,-500.0,0.00027945,4]
[327997664,1716766267281,-500.0,0.00027945,4]
[327997665,1716766267290,-219.71227174,0.00027945,4]
[327997666,1716766267300,-500.0,0.00027945,4]
[327997667,1716766267309,-500.0,0.00027945,4]
[327997668,1716766267318,-500.0,0.00027945,4]
[327997669,1716766267327,-500.0,0.00027945,4]
[327997670,1716766267337,-500.0,0.00027945,4]
[327997671,1716766267346,-526.39788524,0.00027945,4]
[327997672,1716766267355,-169.49049373,0.00027945,4]
[327997673,1716766267364,-500.0,0.00027945,4]
[327997674,1716766267373,-500.0,0.00027945,4]
[327997675,1716766267383,-500.0,0.00027945,4]
[327997676,1716766267392,-500.0,0.00027945,4]
[327997677,1716766267401,-500.0,0.00027945,4]
[327997678,1716766267410,-500.0,0.00027945,4]
[327997679,1716766267419,-500.0,0.00027945,4]
[327997680,1716766267428,-500.0,0.00027945,4]
[327997681,1716766267438,-500.0,0.00027945,4]
[327997682,1716766267447,-500.0,0.00027945,4]
[327997683,1716766267458,-500.0,0.00027945,4]
[327997684,1716766267467,-534.77965457,0.00027945,4]
[327997685,1716766267477,-500.0,0.00027945,4]
[327997686,1716766267486,-500.0,0.00027945,4]
[327997687,1716766267495,-500.0,0.00027945,4]
[327997688,1716766267505,-500.0,0.00027945,4]
[327997689,1716766267514,-500.0,0.00027945,4]
[327997690,1716766267523,-500.0,0.00027945,4]
[327997691,1716766267533,-500.0,0.00027945,4]
[327997692,1716766267542,-500.0,0.00027945,4]
[327997693,1716766267552,-500.0,0.00027945,4]
[327997694,1716766267561,-500.0,0.00027945,4]
[327997695,1716766267570,-500.0,0.00027945,4]
[327997696,1716766267580,-500.0,0.00027945,4]
[327997697,1716766267590,-500.0,0.00027945,4]
[327997698,1716766267600,-500.0,0.00027945,4]
[327997699,1716766267609,-500.0,0.00027945,4]
[327997700,1716766267620,-460.70015006,0.00027945,4]
[327997701,1716766267629,-523.8070046,0.00027945,4]
[327997702,1716766267639,-500.0,0.00027945,4]
[327997703,1716766267648,-500.0,0.00027945,4]
[327997704,1716766267657,-500.0,0.00027945,4]
[327997705,1716766267666,-500.0,0.00027945,4]
[327997706,1716766267676,-500.0,0.00027945,4]
[327997707,1716766267685,-500.0,0.00027945,4]
[327997708,1716766267694,-500.0,0.00027945,4]
[327997709,1716766267704,-500.0,0.00027945,4]
[327997710,1716766267714,-2079.02307396,0.00027945,4]
[327997711,1716766267724,-500.0,0.00027945,4]
[327997712,1716766267733,-500.0,0.00027945,4]
[327997713,1716766267743,-500.0,0.00027945,4]
[327997714,1716766267752,-258.71860669,0.00027945,4]
[327997715,1716766267762,-500.0,0.00027945,4]
[327997716,1716766267771,-500.0,0.00027945,4]
[327997717,1716766267781,-500.0,0.00027945,4]
[327997718,1716766267791,-500.0,0.00027945,4]
[327997719,1716766267800,-500.0,0.00027945,4]
[327997720,1716766267810,-500.0,0.00027945,4]
[327997721,1716766267819,-500.0,0.00027945,4]
[327997722,1716766267829,-502.26001837,0.00027945,4]
[327997723,1716766267838,-500.0,0.00027945,4]
[327997724,1716766267847,-500.0,0.00027945,4]
[327997725,1716766267857,-500.0,0.00027945,4]
[327997726,1716766267866,-500.0,0.00027945,4]
[327997727,1716766267875,-500.0,0.00027945,4]
[327997728,1716766267884,-500.0,0.00027945,4]
[327997729,1716766267894,-500.0,0.00027945,4]
[327997730,1716766267903,-500.0,0.00027945,4]
[327997731,1716766267912,-500.0,0.00027945,4]
[327997732,1716766267922,-500.0,0.00027945,4]
[327997733,1716766267931,-500.0,0.00027945,4]
[327997734,1716766267941,-500.0,0.00027945,4]
[327997735,1716766267950,-500.0,0.00027945,4]
[327997736,1716766267960,-500.0,0.00027945,4]
[327997737,1716766267969,-500.0,0.00027945,4]
[327997738,1716766267980,-500.0,0.00027945,4]
[327997739,1716766267989,-500.0,0.00027945,4]
[327997740,1716766267999,-500.0,0.00027945,4]
[327997741,1716766268008,-500.0,0.00027945,4]
[327997742,1716766268018,-500.0,0.00027945,4]
[327997743,1716766268027,-500.0,0.00027945,4]
[327997744,1716766268038,-500.0,0.00027945,4]
[327997745,1716766268047,-350.11877388,0.00027945,4]
[327997746,1716766268057,-500.0,0.00027945,4]
[327997747,1716766268066,-500.0,0.00027945,4]
[327997748,1716766268076,-500.0,0.00027945,4]
[327997749,1716766268085,-500.0,0.00027945,4]
[327997750,1716766268095,-500.0,0.00027945,4]
[327997751,1716766268104,-500.0,0.00027945,4]
[327997752,1716766268114,-500.0,0.00027945,4]